fUST/lending_fUST_20250104
["ID","MTS","AMOUNT","RATE_DAILY","PERIOD"]
[347618820,1735962639831,-167.115027,0.00018999,2]
[347618821,1735962639842,-1326.349073,0.00018999,2]
[347618822,1735962639862,-1326.349073,0.00018999,2]
[347618823,1735962639882,-1326.349073,0.00018999,2]
[347618824,1735962639893,-1326.349073,0.00018999,2]
[347618825,1735962639903,-1326.349073,0.00018999,2]
[347618826,1735962639914,-1326.349073,0.00018999,2]
[347618827,1735962639923,-1326.349073,0.00018999,2]
[347618828,1735962639933,-1326.349073,0.00018999,2]
[347618829,1735962639942,-1326.349073,0.00018999,2]
[347618830,1735962639952,-1326.349073,0.00018999,2]
[347618831,1735962639961,-230.236348,0.00018999,2]
[347618833,1735962639970,-946.755064,0.00018999,2]
[347618835,1735962639980,-946.755064,0.00018999,2]
[347618837,1735962639989,-946.755064,0.00018999,2]
[347618839,1735962639999,-946.755064,0.00018999,2]
[347618841,1735962640008,-946.755064,0.00018999,2]
[347618843,1735962640018,-946.755064,0.00018999,2]
[347618845,1735962640027,-946.755064,0.00018999,2]
[347618847,1735962640036,-946.755064,0.00018999,2]
[347618849,1735962640046,-946.755064,0.00018999,2]
[347618851,1735962640056,-946.755064,0.00018999,2]
[347618853,1735962640066,-946.755064,0.00018999,2]
[347618855,1735962640076,-946.75506,0.00018999,2]
[347618857,1735962640087,-155023.90373326,0.00019,2]
[347618859,1735962640096,-20000.0,0.00019,2]
[347618861,1735962640106,-175.54490557,0.00019,4]
[347618863,1735962640119,-161.078321,0.00019,2]
[347618865,1735962640129,-151.0,0.00019,2]
[347618867,1735962640139,-152.899838,0.00019,2]
[347618869,1735962640148,-151.0,0.00019,2]
[347618871,1735962640160,-151.0,0.00019,2]
[347618873,1735962640170,-151.0,0.00019,2]
[347618875,1735962640180,-151.0,0.00019,2]
[347618877,1735962640191,-260.529385,0.00019,2]
[347618879,1735962640200,-220.656678,0.00019,2]
[347618881,1735962640209,-220.656678,0.00019,2]
[347618882,1735962640218,-220.656678,0.00019,2]
[347618885,1735962640228,-220.656678,0.00019,2]
[347618887,1735962640237,-181.711578,0.00019,2]
[347618889,1735962640247,-151.0,0.00019,2]
[347618891,1735962640256,-151.0,0.00019,2]
[347618893,1735962640266,-176.498527,0.00019,2]
[347618895,1735962640276,-624.111716,0.00019,2]
[347618897,1735962640285,-624.111716,0.00019,2]
[347618899,1735962640295,-151.0,0.00019,2]
[347618901,1735962640304,-151.0,0.00019,2]
[347618903,1735962640314,-151.0,0.00019,2]
[347618905,1735962640323,-624.111716,0.00019,2]
[347618907,1735962640334,-624.111709,0.00019,2]
[347618909,1735962640343,-151.0,0.00019,2]
[347618911,1735962640352,-151.0,0.00019,2]
[347618913,1735962640362,-151.0,0.00019,2]
[347618915,1735962640371,-151.0,0.00019,2]
[347618917,1735962640381,-151.0,0.00019,2]
[347618919,1735962640391,-1326.349073,0.00019,2]
[347618921,1735962640401,-1326.349079,0.00019,2]
[347618923,1735962640410,-151.0,0.00019005,2]
[347618925,1735962640419,-151.0,0.0001901,2]
[347618927,1735962640428,-1000.0,0.00019013,2]
[347618930,1735962640448,-1000.0,0.00019014,2]
[347618933,1735962640458,-160.0,0.00019028,3]
[347618935,1735962640468,-13836.81416853,0.00019038,2]
[347618937,1735962640477,-151.0,0.00019038,2]
[347618939,1735962640488,-151.0,0.00019038,2]
[347618941,1735962640498,-151.0,0.00019038,2]
[347618943,1735962640508,-220.656678,0.00019038,2]
[347618945,1735962640518,-220.656678,0.00019038,2]
[347618947,1735962640528,-827.184406,0.00019038,2]
[347618949,1735962640540,-151.0,0.00019038,2]
[347618951,1735962640550,-163.59718528,0.0001906,2]
[347618953,1735962640560,-1040.06113587,0.00019066,2]
[347618955,1735962640569,-1000.0,0.00019069,2]
[347618957,1735962640579,-151.0,0.00019075,2]
[347618960,1735962640590,-1646.11019214,0.00019075,2]
[347618962,1735962640600,-405.41703144,0.000191,2]
[347618964,1735962640610,-151.0,0.000191,2]
[347618966,1735962640620,-151.0,0.000191,2]
[347618968,1735962640630,-151.0,0.000191,2]
[347618970,1735962640640,-151.0,0.000191,2]
[347618972,1735962640650,-220.656678,0.000191,2]
[347618974,1735962640660,-220.656678,0.000191,2]
[347618976,1735962640670,-151.0,0.000191,2]
[347618978,1735962640679,-151.0,0.000191,2]
[347618980,1735962640689,-827.184406,0.000191,2]
[347618982,1735962640698,-151.0,0.000191,2]
[347618984,1735962640708,-151.0,0.000191,2]
[347618986,1735962640718,-151.0,0.000191,2]
[347618988,1735962640727,-151.0,0.000191,2]
[347618991,1735962640738,-151.0,0.000191,2]
[347618993,1735962640748,-151.0,0.000191,2]
[347618995,1735962640758,-151.0,0.000191,2]
[347618997,1735962640768,-151.0,0.000191,2]
[347618999,1735962640778,-1000.0,0.00019116,2]
[347619001,1735962640788,-1000.0,0.00019142,2]
[347619003,1735962640797,-1289.65907708,0.00019171,13]
[347619004,1735962640807,-582.18942295,0.00019171,2]
[347619005,1735962640817,-502.8049476,0.00019173,2]
[347619006,1735962640827,-857526.23549344,0.00019175,2]
[347619007,1735962640837,-151.0,0.00019175,2]
[347619008,1735962640847,-151.0,0.00019175,2]
[347619009,1735962640857,-151.0,0.00019175,2]
[347619010,1735962640867,-220.656678,0.00019175,2]
[347619011,1735962640877,-220.656678,0.00019175,2]
[347619012,1735962640886,-827.184406,0.00019175,2]
[347619013,1735962640897,-151.0,0.00019175,2]
[347619014,1735962640907,-13836.81416853,0.00019176,2]
[347619015,1735962640917,-151.0,0.00019176,2]
[347619016,1735962640928,-151.0,0.00019176,2]
[347619017,1735962640937,-151.0,0.00019176,2]
[347619018,1735962640948,-220.656678,0.00019176,2]
[347619019,1735962640957,-220.656678,0.00019176,2]
[347619020,1735962640967,-827.184406,0.00019176,2]
[347619021,1735962640977,-156.99095,0.00019176,2]
[347619022,1735962640987,-501.01172608,0.00019177,2]
[347619023,1735962640997,-500.70844054,0.00019177,2]
[347619024,1735962641008,-500.96237181,0.00019178,2]
[347619025,1735962641017,-160.388927,0.00019178,2]
[347619026,1735962641027,-500.0,0.00019178,2]
[347619027,1735962641036,-154.228778,0.00019178,2]
[347619028,1735962641046,-500.0,0.00019178,2]
[347619029,1735962641056,-802.72,0.00019178,2]
[347619030,1735962641065,-500.0,0.00019178,2]
[347619031,1735962641075,-151.0,0.00019178,2]
[347619032,1735962641086,-151.0,0.00019178,2]
[347619033,1735962641096,-220.656678,0.00019178,2]
[347619034,1735962641106,-220.656678,0.00019178,2]
[347619035,1735962641117,-220.656678,0.00019178,2]
[347619036,1735962641261,-220.656688,0.00019178,2]
[347619037,1735962641271,-151.0,0.00019178,2]
[347619038,1735962641282,-159.631956,0.00019178,2]
[347619039,1735962641292,-500.0,0.00019178,2]
[347619040,1735962641303,-500.0,0.00019178,2]
[347619041,1735962641313,-504.75556556,0.00019178,2]
[347619042,1735962641323,-219.29800239,0.00019178,2]
[347619043,1735962641332,-500.44935906,0.00019178,2]
[347619044,1735962641342,-500.0,0.00019178,2]
[347619045,1735962641351,-500.0,0.00019178,2]
[347619046,1735962641360,-502.37807983,0.00019178,2]
[347619047,1735962641370,-501.27738098,0.00019178,2]
[347619048,1735962641379,-503.1886293,0.00019178,2]
[347619049,1735962641388,-500.62699572,0.00019178,2]
[347619050,1735962641397,-501.15418381,0.00019178,2]
[347619051,1735962641407,-500.0,0.00019178,2]
[347619052,1735962641424,-500.0,0.00019178,2]
[347619053,1735962641434,-501.6129679,0.00019178,2]
[347619054,1735962641443,-500.0,0.00019178,2]
[347619055,1735962641453,-500.0,0.00019178,2]
[347619056,1735962641462,-500.0,0.00019178,2]
[347619057,1735962641473,-505.88693777,0.00019178,2]
[347619058,1735962641483,-500.0,0.00019178,2]
[347619059,1735962641492,-500.97084019,0.00019178,2]
[347619060,1735962641501,-500.0,0.00019178,2]
[347619061,1735962641511,-503.34607549,0.00019178,2]
[347619062,1735962641520,-502.74938181,0.00019178,2]
[347619063,1735962641529,-562.25155905,0.00019178,2]
[347619064,1735962641539,-501.28555806,0.00019178,2]
[347619065,1735962641550,-504.09682934,0.00019178,2]
[347619066,1735962641559,-501.4790294,0.00019178,2]
[347619067,1735962641568,-502.32276427,0.00019178,2]
[347619068,1735962641578,-500.0,0.00019178,2]
[347619069,1735962641588,-500.0,0.00019178,2]
[347619070,1735962641597,-500.0,0.00019178,2]
[347619071,1735962641607,-827.184406,0.00019178,2]
[347619072,1735962641617,-827.184414,0.00019178,2]
[347619073,1735962641627,-500.0,0.00019178,2]
[347619074,1735962641636,-500.0,0.00019178,2]
[347619075,1735962641646,-500.0,0.00019178,2]
[347619076,1735962641655,-503.49767284,0.00019178,2]
[347619077,1735962641665,-501.19592205,0.00019178,2]
[347619078,1735962641675,-504.37011594,0.00019178,2]
[347619079,1735962641684,-502.31114174,0.00019178,2]
[347619080,1735962641695,-503.68672907,0.00019178,2]
[347619081,1735962641705,-500.65486619,0.00019178,2]
[347619082,1735962641714,-536.35919641,0.00019178,2]
[347619083,1735962641724,-501.32247861,0.00019178,2]
[347619084,1735962641733,-191.31721678,0.00019178,2]
[347619085,1735962641743,-502.38214084,0.00019178,2]
[347619086,1735962641752,-501.09709099,0.00019178,2]
[347619087,1735962641761,-500.97361016,0.00019178,2]
[347619088,1735962641770,-500.0,0.00019178,2]
[347619089,1735962641779,-500.0,0.00019178,2]
[347619090,1735962641790,-501.72108673,0.00019178,2]
[347619091,1735962641799,-500.83592867,0.00019178,2]
[347619092,1735962641808,-500.0,0.00019178,2]
[347619093,1735962641818,-503.3640945,0.00019178,2]
[347619094,1735962641827,-501.75894366,0.00019178,2]
[347619095,1735962641837,-502.02426157,0.00019178,2]
[347619096,1735962641847,-500.0,0.00019178,2]
[347619097,1735962641857,-502.89430331,0.00019178,2]
[347619098,1735962641866,-504.94312246,0.00019178,2]
[347619099,1735962641876,-500.0,0.00019178,2]
[347619100,1735962641885,-502.06906784,0.00019178,2]
[347619101,1735962641895,-503.72055396,0.00019178,2]
[347619102,1735962641904,-502.0935211,0.00019178,2]
[347619103,1735962641913,-503.34195157,0.00019178,2]
[347619104,1735962641922,-500.0,0.00019178,2]
[347619105,1735962641932,-501.93759342,0.00019178,2]
[347619106,1735962641942,-500.0,0.00019178,2]
[347619107,1735962641952,-500.40540325,0.00019178,2]
[347619108,1735962641962,-503.0893561,0.00019178,2]
[347619109,1735962641971,-500.0,0.00019178,2]
[347619110,1735962641980,-500.0,0.00019178,2]
[347619111,1735962641990,-503.20833587,0.00019178,2]
[347619112,1735962641999,-500.0,0.00019178,2]
[347619113,1735962642010,-587.78031135,0.00019178,2]
[347619114,1735962642019,-500.0,0.00019178,2]
[347619115,1735962642028,-502.7620546,0.00019178,2]
[347619116,1735962642037,-503.11437045,0.00019178,2]
[347619117,1735962642047,-500.0,0.00019178,2]
[347619118,1735962642056,-506.23836274,0.00019178,2]
[347619119,1735962642066,-500.0,0.00019178,2]
[347619120,1735962642075,-500.0,0.00019178,2]
[347619121,1735962642085,-500.0,0.00019178,2]
[347619122,1735962642095,-500.0,0.00019178,2]
[347619123,1735962642104,-500.0,0.00019178,2]
[347619124,1735962642116,-189.30404936,0.00019178,2]
[347619125,1735962642125,-502.42168179,0.00019178,2]
[347619126,1735962642136,-500.0,0.00019178,2]
[347619127,1735962642145,-506.76393999,0.00019178,2]
[347619128,1735962642155,-501.78491325,0.00019178,2]
[347619129,1735962642164,-500.0,0.00019178,2]
[347619130,1735962642174,-501.38997316,0.00019178,2]
[347619131,1735962642184,-501.79507073,0.00019178,2]
[347619132,1735962642193,-500.76608433,0.00019178,2]
[347619133,1735962642203,-501.32716894,0.00019178,2]
[347619134,1735962642212,-503.60469704,0.00019178,2]
[347619135,1735962642222,-491.88887778,0.00019178,2]
[347619136,1735962642231,-501.04945929,0.00019178,2]
[347619137,1735962642240,-501.08127923,0.00019178,2]
[347619138,1735962642250,-500.0,0.00019178,2]
[347619139,1735962642259,-500.0,0.00019178,2]
[347619140,1735962642268,-501.60854367,0.00019178,2]
[347619141,1735962642278,-502.60065724,0.00019178,2]
[347619142,1735962642287,-502.65470528,0.00019178,2]
[347619143,1735962642296,-500.0,0.00019178,2]
[347619144,1735962642306,-501.12712917,0.00019178,2]
[347619145,1735962642315,-502.59543549,0.00019178,2]
[347619146,1735962642324,-500.0,0.00019178,2]
[347619147,1735962642335,-500.0,0.00019178,2]
[347619148,1735962642344,-502.41369589,0.00019178,2]
[347619149,1735962642354,-501.12752366,0.00019178,2]
[347619150,1735962642363,-500.0,0.00019178,2]
[347619151,1735962642372,-500.0,0.00019178,2]
[347619152,1735962642382,-501.84295838,0.00019178,2]
[347619153,1735962642392,-504.66978103,0.00019178,2]
[347619154,1735962642401,-500.0,0.00019178,2]
[347619155,1735962642410,-507.00821261,0.00019178,2]
[347619156,1735962642419,-501.60994573,0.00019178,2]
[347619157,1735962642429,-502.0369345,0.00019178,2]
[347619158,1735962642438,-500.0,0.00019178,2]
[347619159,1735962642447,-500.0,0.00019178,2]
[347619160,1735962642456,-502.40935711,0.00019178,2]
[347619161,1735962642465,-500.0,0.00019178,2]
[347619162,1735962642474,-536.46874742,0.00019178,2]
[347619163,1735962642484,-501.79009992,0.00019178,2]
[347619164,1735962642493,-501.31236743,0.00019178,2]
[347619166,1735962642503,-500.0,0.00019178,2]
[347619167,1735962642512,-608.41603334,0.00019178,2]
[347619169,1735962642522,-543.74921592,0.00019178,2]
[347619170,1735962642531,-501.69343739,0.00019178,2]
[347619172,1735962642540,-500.77047766,0.00019178,2]
[347619173,1735962642550,-500.0,0.00019178,2]
[347619174,1735962642560,-501.27604919,0.00019178,2]
[347619175,1735962642569,-501.79414426,0.00019178,2]
[347619176,1735962642578,-503.78,0.00019178,2]
[347619177,1735962642588,-600.17,0.00019178,2]
[347619178,1735962642598,-500.0,0.00019178,2]
[347619179,1735962642607,-500.0,0.00019178,2]
[347619180,1735962642616,-500.0,0.00019178,2]
[347619181,1735962642626,-511.19959331,0.00019178,2]
[347619182,1735962642635,-500.0,0.00019178,2]
[347619183,1735962642644,-502.54308815,0.00019178,2]
[347619184,1735962642653,-501.56478441,0.00019178,2]
[347619185,1735962642663,-189.03520792,0.00019178,2]
[347619186,1735962642672,-506.4961687,0.00019178,2]
[347619187,1735962642682,-502.25310299,0.00019178,2]
[347619188,1735962642691,-500.98996478,0.00019178,2]
[347619189,1735962642700,-500.89876206,0.00019178,2]
[347619190,1735962642710,-502.88868623,0.00019178,2]
[347619191,1735962642719,-500.0,0.00019178,2]
[347619192,1735962642727,-500.0,0.00019178,2]
[347619194,1735962642737,-500.0,0.00019178,2]
[347619196,1735962642746,-503.60828875,0.00019178,2]
[347619198,1735962642754,-500.0,0.00019178,2]
[347619200,1735962642764,-500.83424053,0.00019178,2]
[347619203,1735962642773,-500.0,0.00019178,2]
[347619205,1735962642782,-500.0,0.00019178,2]
[347619208,1735962642792,-502.45755798,0.00019178,2]
[347619212,1735962642801,-500.0,0.00019178,2]
[347619215,1735962642810,-500.88602919,0.00019178,2]
[347619218,1735962642820,-501.16326327,0.00019178,2]
[347619221,1735962642829,-502.13608105,0.00019178,2]
[347619224,1735962642838,-502.72714374,0.00019178,2]
[347619227,1735962642848,-500.0,0.00019178,2]
[347619230,1735962642858,-500.0,0.00019178,2]
[347619232,1735962642868,-507.32074391,0.00019178,2]
[347619234,1735962642877,-502.18031719,0.00019178,2]
[347619236,1735962642886,-501.51141285,0.00019178,2]
[347619238,1735962642896,-500.0,0.00019178,2]
[347619240,1735962642905,-502.19547922,0.00019178,2]
[347619242,1735962642914,-214.32187886,0.00019178,2]
[347619244,1735962642924,-504.39972337,0.00019178,2]
[347619246,1735962642933,-503.02473175,0.00019178,2]
[347619248,1735962642943,-500.0,0.00019178,2]
[347619250,1735962642952,-482.69919974,0.00019178,2]
[347619252,1735962642961,-500.0,0.00019178,2]
[347619254,1735962642970,-501.4472582,0.00019178,2]
[347619256,1735962642980,-500.90651099,0.00019178,2]
[347619258,1735962642989,-500.0,0.00019178,2]
[347619260,1735962642998,-500.0,0.00019178,2]
[347619262,1735962643007,-504.45967914,0.00019178,2]
[347619264,1735962643018,-500.80152879,0.00019178,2]
[347619266,1735962643027,-500.71203353,0.00019178,2]
[347619268,1735962643036,-500.0,0.00019178,2]
[347619270,1735962643045,-500.9308843,0.00019178,2]
[347619272,1735962643055,-500.0,0.00019178,2]
[347619273,1735962643064,-649.91,0.00019178,2]
[347619274,1735962643074,-501.13434528,0.00019178,2]
[347619276,1735962643083,-500.0,0.00019178,2]
[347619278,1735962643095,-500.0,0.00019178,2]
[347619280,1735962643105,-500.0,0.00019178,2]
[347619282,1735962643118,-500.0,0.00019178,2]
[347619284,1735962643127,-500.0,0.00019178,2]
[347619286,1735962643138,-500.0,0.00019178,2]
[347619288,1735962643147,-500.0,0.00019178,2]
[347619290,1735962643156,-500.0,0.00019178,2]
[347619292,1735962643166,-500.0,0.00019178,2]
[347619294,1735962643175,-500.0,0.00019178,2]
[347619296,1735962643184,-501.43799261,0.00019178,2]
[347619297,1735962643195,-500.0,0.00019178,2]
[347619299,1735962643204,-500.0,0.00019178,2]
[347619301,1735962643214,-500.0,0.00019178,2]
[347619303,1735962643224,-500.0,0.00019178,2]
[347619305,1735962643233,-301.98312987,0.00019178,2]
[347619307,1735962643243,-501.41719684,0.00019178,2]
[347619308,1735962643252,-229.07658627,0.00019178,2]
[347619309,1735962643262,-500.0,0.00019178,2]
[347619310,1735962643272,-502.75890112,0.00019178,2]
[347619312,1735962643281,-501.74927671,0.00019178,2]
[347619313,1735962643291,-500.0,0.00019178,2]
[347619314,1735962643300,-244.89067502,0.00019178,2]
[347619315,1735962643310,-500.0,0.00019178,2]
[347619316,1735962643319,-500.0,0.00019178,2]
[347619317,1735962643330,-501.24168768,0.00019178,2]
[347619318,1735962643340,-500.0,0.00019178,2]
[347619319,1735962643350,-849.0,0.00019178,2]
[347619320,1735962643359,-500.0,0.00019178,2]
[347619321,1735962643369,-502.45369925,0.00019178,2]
[347619322,1735962643379,-959.7,0.00019178,2]
[347619323,1735962643388,-500.0,0.00019178,2]
[347619324,1735962643398,-500.0,0.00019178,2]
[347619325,1735962643407,-500.0,0.00019178,2]
[347619326,1735962643416,-500.0,0.00019178,2]
[347619328,1735962643427,-501.05362522,0.00019178,2]
[347619330,1735962643436,-502.31697073,0.00019178,2]
[347619331,1735962643446,-500.0,0.00019178,2]
[347619332,1735962643455,-501.50401106,0.00019178,2]
[347619333,1735962643464,-500.0,0.00019178,2]
[347619334,1735962643572,-500.0,0.00019178,2]
[347619335,1735962643583,-500.96253196,0.00019178,2]
[347619336,1735962643593,-502.58708023,0.00019178,2]
[347619337,1735962643603,-500.0,0.00019178,2]
[347619338,1735962643612,-500.0,0.00019178,2]
[347619339,1735962643622,-500.0,0.00019178,2]
[347619340,1735962643631,-500.0,0.00019178,2]
[347619341,1735962643641,-500.0,0.00019178,2]
[347619342,1735962643650,-500.0,0.00019178,2]
[347619343,1735962643659,-500.0,0.00019178,2]
[347619344,1735962643668,-500.0,0.00019178,2]
[347619345,1735962643677,-502.47651114,0.00019178,2]
[347619346,1735962643687,-500.0,0.00019178,2]
[347619347,1735962643696,-500.0,0.00019178,2]
[347619348,1735962643706,-500.0,0.00019178,2]
[347619349,1735962643716,-500.0,0.00019178,2]
[347619350,1735962643725,-500.0,0.00019178,2]
[347619351,1735962643736,-500.0,0.00019178,2]
[347619352,1735962643746,-514.29563227,0.00019178,2]
[347619353,1735962643755,-500.0,0.00019178,2]
[347619354,1735962643766,-500.0,0.00019178,2]
[347619355,1735962643776,-500.0,0.00019178,2]
[347619356,1735962643786,-500.0,0.00019178,2]
[347619357,1735962643795,-500.0,0.00019178,2]
[347619358,1735962643805,-500.67698748,0.00019178,2]
[347619359,1735962643814,-500.0,0.00019178,2]
[347619360,1735962643824,-502.06223381,0.00019178,2]
[347619361,1735962643833,-500.0,0.00019178,2]
[347619362,1735962643843,-479.33676184,0.00019178,2]
[347619363,1735962643852,-500.74596602,0.00019178,2]
[347619364,1735962643862,-500.71252865,0.00019178,2]
[347619365,1735962643872,-430.91857011,0.00019178,2]
[347619366,1735962643881,-500.78584075,0.00019178,2]
[347619367,1735962643890,-500.0,0.00019178,2]
[347619368,1735962643899,-501.36686877,0.00019178,2]
[347619369,1735962643909,-711.44,0.00019178,2]
[347619370,1735962643919,-503.1004724,0.00019178,2]
[347619371,1735962643928,-567.45,0.00019178,2]
[347619372,1735962643938,-503.02639372,0.00019178,2]
[347619373,1735962643948,-500.0,0.00019178,2]
[347619374,1735962643957,-500.0,0.00019178,2]
[347619375,1735962643968,-502.53985228,0.00019178,2]
[347619376,1735962643977,-538.84,0.00019178,2]
[347619377,1735962643987,-501.6343489,0.00019178,2]
[347619378,1735962643996,-502.71229804,0.00019178,2]
[347619379,1735962644005,-500.0,0.00019178,2]
[347619380,1735962644015,-500.98652145,0.00019178,2]
[347619381,1735962644025,-500.0,0.00019178,2]
[347619382,1735962644035,-501.11831848,0.00019178,2]
[347619383,1735962644046,-393.22245828,0.00019178,2]
[347619384,1735962644056,-500.0,0.00019178,2]
[347619385,1735962644065,-500.0,0.00019178,2]
[347619386,1735962644075,-500.84902914,0.00019178,2]
[347619387,1735962644085,-500.0,0.00019178,2]
[347619388,1735962644095,-502.81829467,0.00019178,2]
[347619389,1735962644104,-500.92140479,0.00019178,2]
[347619390,1735962644117,-578.51,0.00019178,2]
[347619391,1735962644126,-500.0,0.00019178,2]
[347619392,1735962644136,-500.73628754,0.00019178,2]
[347619393,1735962644145,-500.0,0.00019178,2]
[347619394,1735962644154,-506.26598559,0.00019178,2]
[347619395,1735962644165,-500.0,0.00019178,2]
[347619396,1735962644176,-500.47726093,0.00019178,2]
[347619397,1735962644185,-502.02627047,0.00019178,2]
[347619398,1735962644197,-500.0,0.00019178,2]
[347619399,1735962644206,-501.48207483,0.00019178,2]
[347619400,1735962644215,-500.0,0.00019178,2]
[347619401,1735962644225,-502.92997022,0.00019178,2]
[347619402,1735962644234,-666.96,0.00019178,2]
[347619403,1735962644244,-500.0,0.00019178,2]
[347619404,1735962644254,-503.18664345,0.00019178,2]
[347619405,1735962644265,-500.54148263,0.00019178,2]
[347619406,1735962644274,-500.0,0.00019178,2]
[347619407,1735962644284,-500.0,0.00019178,2]
[347619408,1735962644295,-500.0,0.00019178,2]
[347619409,1735962644305,-500.0,0.00019178,2]
[347619410,1735962644315,-500.0,0.00019178,2]
[347619411,1735962644324,-1000.0,0.00019178,2]
[347619412,1735962644334,-500.0,0.00019178,2]
[347619413,1735962644346,-500.0,0.00019178,2]
[347619414,1735962644356,-500.0,0.00019178,2]
[347619415,1735962644366,-500.0,0.00019178,2]
[347619416,1735962644375,-502.4213611,0.00019178,2]
[347619417,1735962644386,-500.0,0.00019178,2]
[347619418,1735962644396,-500.0,0.00019178,2]
[347619419,1735962644406,-500.0,0.00019178,2]
[347619420,1735962644415,-505.99221721,0.00019178,2]
[347619421,1735962644426,-1131.89,0.00019178,2]
[347619422,1735962644436,-502.89047534,0.00019178,2]
[347619423,1735962644446,-500.0,0.00019178,2]
[347619424,1735962644456,-501.09979673,0.00019178,2]
[347619425,1735962644467,-502.96900809,0.00019178,2]
[347619426,1735962644478,-500.0,0.00019178,2]
[347619427,1735962644488,-501.15499867,0.00019178,2]
[347619428,1735962644497,-676.19,0.00019178,2]
[347619429,1735962644507,-500.0,0.00019178,2]
[347619430,1735962644516,-500.0,0.00019178,2]
[347619431,1735962644526,-501.12693643,0.00019178,2]
[347619432,1735962644536,-500.0,0.00019178,2]
[347619433,1735962644546,-500.0,0.00019178,2]
[347619434,1735962644556,-503.11692091,0.00019178,2]
[347619435,1735962644566,-503.82895213,0.00019178,2]
[347619436,1735962644576,-509.71547341,0.00019178,2]
[347619437,1735962644586,-500.0,0.00019178,2]
[347619438,1735962644595,-500.0,0.00019178,2]
[347619439,1735962644605,-500.0,0.00019178,2]
[347619440,1735962644614,-501.82429056,0.00019178,2]
[347619441,1735962644629,-500.0,0.00019178,2]
[347619442,1735962644645,-443.22513428,0.00019178,2]
[347619443,1735962644660,-620.47292789,0.00019178,2]
[347619444,1735962644671,-500.0,0.00019178,2]
[347619445,1735962644685,-500.0,0.00019178,2]
[347619446,1735962644699,-500.0,0.00019178,2]
[347619447,1735962644713,-500.0,0.00019178,2]
[347619448,1735962644726,-200.47128707,0.00019178,2]
[347619449,1735962644739,-500.0,0.00019178,2]
[347619450,1735962644753,-505.67587856,0.00019178,2]
[347619451,1735962644766,-500.0,0.00019178,2]
[347619452,1735962644782,-500.0,0.00019178,2]
[347619453,1735962644795,-500.0,0.00019178,2]
[347619454,1735962644808,-501.36872192,0.00019178,2]
[347619455,1735962644821,-500.0,0.00019178,2]
[347619456,1735962644834,-500.0,0.00019178,2]
[347619457,1735962644848,-500.0,0.00019178,2]
[347619458,1735962644861,-501.69912093,0.00019178,2]
[347619459,1735962644875,-500.0,0.00019178,2]
[347619460,1735962644886,-508.13556745,0.00019178,2]
[347619461,1735962644898,-501.57278618,0.00019178,2]
[347619462,1735962644912,-503.67221786,0.00019178,2]
[347619463,1735962644925,-502.05588767,0.00019178,2]
[347619464,1735962644939,-504.23435684,0.00019178,2]
[347619465,1735962644952,-501.64798128,0.00019178,2]
[347619466,1735962644965,-500.0,0.00019178,2]
[347619467,1735962644980,-500.84884622,0.00019178,2]
[347619468,1735962644994,-500.0,0.00019178,2]
[347619469,1735962645008,-500.9079718,0.00019178,2]
[347619470,1735962645019,-606.23859314,0.00019178,2]
[347619471,1735962645030,-504.74895352,0.00019178,2]
[347619472,1735962645041,-501.42251638,0.00019178,2]
[347619473,1735962645051,-500.0,0.00019178,2]
[347619474,1735962645065,-515.39311196,0.00019178,2]